fUST/lending_fUST_20240117
["ID","MTS","AMOUNT","RATE_DAILY","PERIOD"]
[311856089,1705475439179,-500.0,0.00021917,2]
[311856090,1705475439187,-500.0,0.00021917,2]
[311856091,1705475439196,-500.0,0.00021917,2]
[311856092,1705475439205,-500.0,0.00021917,2]
[311856093,1705475439214,-500.0,0.00021917,2]
[311856094,1705475439223,-500.0,0.00021917,2]
[311856095,1705475439232,-5229.37,0.00021917,2]
[311856096,1705475439242,-500.0,0.00021917,2]
[311856097,1705475439251,-1716.15,0.00021917,2]
[311856098,1705475439260,-500.0,0.00021917,2]
[311856099,1705475439269,-500.0,0.00021917,2]
[311856100,1705475439278,-500.0,0.00021917,2]
[311856101,1705475439287,-679.28,0.00021917,2]
[311856102,1705475439295,-500.0,0.00021917,2]
[311856103,1705475439304,-500.0,0.00021917,2]
[311856104,1705475439314,-500.0,0.00021917,2]
[311856105,1705475439323,-500.0,0.00021917,2]
[311856106,1705475439332,-500.0,0.00021917,2]
[311856107,1705475439341,-209.73633126,0.00021917,2]
[311856108,1705475439351,-761.44,0.00021917,2]
[311856109,1705475439360,-500.0,0.00021917,2]
[311856110,1705475439371,-500.0,0.00021917,2]
[311856111,1705475439381,-500.0,0.00021917,2]
[311856112,1705475439390,-25315.01,0.00021917,2]
[311856113,1705475439400,-14385.46,0.00021917,2]
[311856114,1705475439409,-500.0,0.00021917,2]
[311856115,1705475439419,-1917.7,0.00021917,2]
[311856116,1705475439428,-500.0,0.00021917,2]
[311856117,1705475439437,-500.0,0.00021917,2]
[311856118,1705475439447,-2298.94,0.00021917,2]
[311856119,1705475439456,-506.0700257,0.00021917,2]
[311856120,1705475439466,-500.0,0.00021917,2]
[311856121,1705475439475,-500.0,0.00021917,2]
[311856122,1705475439485,-728.01,0.00021917,2]
[311856123,1705475439494,-500.0,0.00021917,2]
[311856124,1705475439503,-241.37531993,0.00021917,2]
[311856125,1705475439513,-500.0,0.00021917,2]
[311856126,1705475439522,-799.16,0.00021917,2]
[311856127,1705475439530,-500.0,0.00021917,2]
[311856128,1705475439539,-500.0,0.00021917,2]
[311856129,1705475439548,-500.0,0.00021917,2]
[311856130,1705475439558,-1432.6,0.00021917,2]
[311856131,1705475439567,-500.0,0.00021917,2]
[311856132,1705475439576,-500.0,0.00021917,2]
[311856133,1705475439585,-500.0,0.00021917,2]
[311856134,1705475439593,-500.0,0.00021917,2]
[311856135,1705475439602,-500.0,0.00021917,2]
[311856136,1705475439611,-282.50659396,0.00021917,2]
[311856137,1705475439620,-866.04,0.00021917,2]
[311856138,1705475439629,-6347.06,0.00021917,2]
[311856139,1705475439637,-500.0,0.00021917,2]
[311856140,1705475439646,-500.0,0.00021917,2]
[311856141,1705475439656,-1006.77139526,0.00021917,2]
[311856142,1705475439665,-500.0,0.00021917,2]
[311856143,1705475439674,-500.0,0.00021917,2]
[311856144,1705475439684,-2504.43,0.00021917,2]
[311856145,1705475439693,-1222.41,0.00021917,2]
[311856146,1705475439703,-500.0,0.00021917,2]
[311856147,1705475439712,-1265.88,0.00021917,2]
[311856148,1705475439722,-500.0,0.00021917,2]
[311856149,1705475439731,-1532.62,0.00021917,2]
[311856150,1705475439741,-500.0,0.00021917,2]
[311856151,1705475439750,-1582.11,0.00021917,2]
[311856152,1705475439759,-500.0,0.00021917,2]
[311856153,1705475439768,-500.0,0.00021917,2]
[311856154,1705475439777,-500.0,0.00021917,2]
[311856155,1705475439787,-500.0,0.00021917,2]
[311856156,1705475439796,-500.0,0.00021917,2]
[311856157,1705475439805,-500.0,0.00021917,2]
[311856158,1705475439816,-500.0,0.00021917,2]
[311856159,1705475439825,-166.666666,0.00021918,2]
[311856160,1705475439835,-3376.69118887,0.00021922,5]
[311856161,1705475439844,-200.0,0.00021999,7]
[311856162,1705475439853,-150.0,0.00022,2]
[311856163,1705475439863,-293.1976279,0.00022,4]
[311856164,1705475439872,-425.4475257,0.00022,2]
[311856165,1705475439881,-3945.5094445,0.00022,2]
[311856166,1705475439891,-157.08440165,0.00022,2]
[311856167,1705475439900,-2082.34429626,0.00022044,2]
[311856168,1705475439910,-156.43500893,0.00022044,2]
[311856169,1705475439919,-500.0,0.00022054,2]
[311856170,1705475439928,-500.0,0.00022054,2]
[311856171,1705475439937,-585.66,0.00022054,2]
[311856172,1705475439946,-500.0,0.00022054,2]
[311856173,1705475439956,-500.0,0.00022054,2]
[311856174,1705475439965,-500.0,0.00022054,2]
[311856175,1705475439974,-500.0,0.00022054,2]
[311856176,1705475439984,-500.0,0.00022054,2]
[311856177,1705475439993,-500.0,0.00022054,2]
[311856178,1705475440002,-1303.14,0.00022054,2]
[311856179,1705475440012,-500.0,0.00022054,2]
[311856180,1705475440022,-1056.18,0.00022054,2]
[311856181,1705475440032,-500.0,0.00022054,2]
[311856182,1705475440042,-500.0,0.00022054,2]
[311856183,1705475440051,-500.0,0.00022054,2]
[311856184,1705475440062,-500.0,0.00022054,2]
[311856185,1705475440071,-739.96,0.00022054,2]
[311856186,1705475440154,-500.0,0.00022054,2]
[311856187,1705475440163,-500.0,0.00022054,2]
[311856188,1705475440173,-500.0,0.00022054,2]
[311856190,1705475440182,-637.39,0.00022054,2]
[311856192,1705475440191,-500.0,0.00022054,2]
[311856193,1705475440200,-500.0,0.00022054,2]
[311856194,1705475440208,-547.07,0.00022054,2]
[311856195,1705475440218,-500.0,0.00022054,2]
[311856196,1705475440227,-500.0,0.00022054,2]
[311856198,1705475440236,-500.0,0.00022054,2]
[311856199,1705475440245,-1308.5,0.00022054,2]
[311856200,1705475440255,-500.0,0.00022054,2]
[311856201,1705475440265,-500.0,0.00022054,2]
[311856202,1705475440274,-500.0,0.00022054,2]
[311856203,1705475440284,-500.0,0.00022054,2]
[311856204,1705475440293,-500.0,0.00022054,2]
[311856205,1705475440302,-500.0,0.00022054,2]
[311856206,1705475440313,-737.66,0.00022054,2]
[311856207,1705475440322,-500.0,0.00022054,2]
[311856208,1705475440331,-500.0,0.00022054,2]
[311856210,1705475440342,-702.46,0.00022054,2]
[311856212,1705475440351,-451.09078181,0.00022054,2]
[311856215,1705475440361,-500.0,0.00022054,2]
[311856217,1705475440369,-502.79,0.00022054,2]
[311856218,1705475440378,-500.0,0.00022054,2]
[311856219,1705475440388,-907.25,0.00022054,2]
[311856221,1705475440397,-199.39250185,0.00022054,2]
[311856223,1705475440406,-500.0,0.00022054,2]
[311856225,1705475440414,-500.0,0.00022054,2]
[311856227,1705475440423,-500.0,0.00022054,2]
[311856229,1705475440432,-500.0,0.00022054,2]
[311856231,1705475440442,-500.0,0.00022054,2]
[311856232,1705475440451,-500.0,0.00022054,2]
[311856233,1705475440460,-500.0,0.00022054,2]
[311856234,1705475440469,-1044.13,0.00022054,2]
[311856236,1705475440477,-500.0,0.00022054,2]
[311856237,1705475440486,-500.0,0.00022054,2]
[311856238,1705475440495,-500.0,0.00022054,2]
[311856239,1705475440504,-500.0,0.00022054,2]
[311856240,1705475440512,-515.13,0.00022054,2]
[311856241,1705475440521,-500.0,0.00022054,2]
[311856242,1705475440530,-500.0,0.00022054,2]
[311856243,1705475440539,-500.0,0.00022054,2]
[311856244,1705475440548,-723.53,0.00022054,2]
[311856245,1705475440558,-14154.63,0.00022054,2]
[311856246,1705475440567,-500.0,0.00022054,2]
[311856247,1705475440575,-610.97756718,0.00022054,2]
[311856248,1705475440584,-500.0,0.00022054,2]
[311856249,1705475440593,-500.0,0.00022054,2]
[311856250,1705475440601,-500.0,0.00022054,2]
[311856251,1705475440611,-2315.44,0.00022054,2]
[311856252,1705475440620,-500.0,0.00022054,2]
[311856253,1705475440630,-500.0,0.00022054,2]
[311856254,1705475440639,-500.0,0.00022054,2]
[311856255,1705475440648,-500.0,0.00022054,2]
[311856256,1705475440657,-3220.33,0.00022054,2]
[311856257,1705475440666,-648.24,0.00022054,2]
[311856258,1705475440675,-6405.2,0.00022054,2]
[311856259,1705475440684,-507.15349144,0.00022054,2]
[311856260,1705475440693,-201.66657356,0.00022054,2]
[311856261,1705475440702,-1449.32,0.00022054,2]
[311856262,1705475440711,-8526.11,0.00022054,2]
[311856263,1705475440720,-500.0,0.00022054,2]
[311856264,1705475440729,-500.0,0.00022054,2]
[311856265,1705475440738,-2706.67,0.00022054,2]
[311856266,1705475440747,-2457.59,0.00022054,2]
[311856267,1705475440757,-500.0,0.00022054,2]
[311856268,1705475440766,-500.0,0.00022054,2]
[311856269,1705475440775,-500.0,0.00022054,2]
[311856270,1705475440784,-500.0,0.00022054,2]
[311856271,1705475440793,-500.0,0.00022054,2]
[311856272,1705475440803,-500.0,0.00022054,2]
[311856273,1705475440814,-5229.37,0.00022054,2]
[311856274,1705475440823,-512.31621446,0.00022054,2]
[311856275,1705475440832,-1716.15,0.00022054,2]
[311856276,1705475440841,-500.0,0.00022054,2]
[311856277,1705475440850,-500.0,0.00022054,2]
[311856278,1705475440859,-547.60006591,0.00022054,2]
[311856279,1705475440868,-679.28,0.00022054,2]
[311856280,1705475440876,-500.0,0.00022054,2]
[311856281,1705475440885,-500.0,0.00022054,2]
[311856282,1705475440894,-500.0,0.00022054,2]
[311856283,1705475440903,-500.0,0.00022054,2]
[311856284,1705475440912,-500.0,0.00022054,2]
[311856285,1705475440922,-761.44,0.00022054,2]
[311856286,1705475440931,-500.0,0.00022054,2]
[311856287,1705475440940,-500.0,0.00022054,2]
[311856288,1705475440950,-500.0,0.00022054,2]
[311856289,1705475440959,-25315.01,0.00022054,2]
[311856290,1705475440969,-14385.46,0.00022054,2]
[311856291,1705475440977,-500.0,0.00022054,2]
[311856292,1705475440986,-1917.7,0.00022054,2]
[311856293,1705475440995,-500.0,0.00022054,2]
[311856294,1705475441004,-500.0,0.00022054,2]
[311856295,1705475441016,-2298.94,0.00022054,2]
[311856296,1705475441025,-500.0,0.00022054,2]
[311856298,1705475441035,-500.0,0.00022054,2]
[311856299,1705475441043,-728.01,0.00022054,2]
[311856300,1705475441052,-500.0,0.00022054,2]
[311856301,1705475441062,-500.0,0.00022054,2]
[311856302,1705475441071,-799.16,0.00022054,2]
[311856303,1705475441080,-500.0,0.00022054,2]
[311856304,1705475441089,-500.0,0.00022054,2]
[311856305,1705475441099,-500.0,0.00022054,2]
[311856306,1705475441109,-1432.6,0.00022054,2]
[311856307,1705475441118,-600.88725899,0.00022054,2]
[311856308,1705475441127,-500.0,0.00022054,2]
[311856309,1705475441136,-500.0,0.00022054,2]
[311856310,1705475441146,-500.0,0.00022054,2]
[311856311,1705475441155,-866.04,0.00022054,2]
[311856312,1705475441165,-6347.06,0.00022054,2]
[311856313,1705475441174,-500.0,0.00022054,2]
[311856314,1705475441183,-500.0,0.00022054,2]
[311856315,1705475441193,-500.0,0.00022054,2]
[311856316,1705475441202,-500.0,0.00022054,2]
[311856317,1705475441212,-2504.43,0.00022054,2]
[311856318,1705475441221,-1222.41,0.00022054,2]
[311856319,1705475441231,-500.0,0.00022054,2]
[311856320,1705475441242,-1265.88,0.00022054,2]
[311856321,1705475441252,-500.0,0.00022054,2]
[311856322,1705475441261,-1532.62,0.00022054,2]
[311856323,1705475441270,-1582.11,0.00022054,2]
[311856324,1705475441279,-500.0,0.00022054,2]
[311856325,1705475441287,-500.0,0.00022054,2]
[311856326,1705475441296,-500.0,0.00022054,2]
[311856327,1705475441305,-500.0,0.00022054,2]
[311856328,1705475441315,-500.0,0.00022054,2]
[311856329,1705475441324,-500.0,0.00022054,2]
[311856330,1705475441333,-500.0,0.00022054,2]
[311856331,1705475441342,-500.0,0.00022191,2]
[311856332,1705475441351,-585.66,0.00022191,2]
[311856333,1705475441360,-500.0,0.00022191,2]
[311856334,1705475441369,-500.0,0.00022191,2]
[311856335,1705475441378,-500.0,0.00022191,2]
[311856336,1705475441388,-500.0,0.00022191,2]
[311856337,1705475441397,-500.0,0.00022191,2]
[311856338,1705475441407,-500.0,0.00022191,2]
[311856339,1705475441447,-1303.14,0.00022191,2]
[311856340,1705475441457,-500.0,0.00022191,2]
[311856341,1705475441467,-1056.18,0.00022191,2]
[311856342,1705475441478,-500.0,0.00022191,2]
[311856343,1705475441488,-500.0,0.00022191,2]
[311856344,1705475441499,-500.0,0.00022191,2]
[311856345,1705475441509,-739.96,0.00022191,2]
[311856346,1705475441519,-500.0,0.00022191,2]
[311856347,1705475441529,-500.0,0.00022191,2]
[311856348,1705475441539,-500.0,0.00022191,2]
[311856349,1705475441549,-637.39,0.00022191,2]
[311856350,1705475441560,-500.0,0.00022191,2]
[311856351,1705475441570,-547.07,0.00022191,2]
[311856352,1705475441580,-500.0,0.00022191,2]
[311856353,1705475441590,-500.0,0.00022191,2]
[311856354,1705475441599,-1308.5,0.00022191,2]
[311856355,1705475441609,-500.0,0.00022191,2]
[311856356,1705475441619,-500.0,0.00022191,2]
[311856357,1705475441630,-500.0,0.00022191,2]
[311856358,1705475441639,-500.0,0.00022191,2]
[311856359,1705475441649,-737.66,0.00022191,2]
[311856360,1705475441659,-500.0,0.00022191,2]
[311856361,1705475441668,-702.46,0.00022191,2]
[311856362,1705475441679,-500.0,0.00022191,2]
[311856363,1705475441690,-502.79,0.00022191,2]
[311856364,1705475441700,-907.25,0.00022191,2]
[311856365,1705475441709,-420.57604732,0.00022191,2]
[311856366,1705475441719,-500.0,0.00022191,2]
[311856367,1705475441729,-500.0,0.00022191,2]
[311856368,1705475441739,-500.0,0.00022191,2]
[311856369,1705475441750,-1044.13,0.00022191,2]
[311856370,1705475441760,-500.0,0.00022191,2]
[311856371,1705475441770,-500.0,0.00022191,2]
[311856372,1705475441780,-500.0,0.00022191,2]
[311856373,1705475441790,-515.13,0.00022191,2]
[311856374,1705475441799,-500.0,0.00022191,2]
[311856375,1705475441809,-500.0,0.00022191,2]
[311856376,1705475441821,-500.0,0.00022191,2]
[311856377,1705475441830,-723.53,0.00022191,2]
[311856378,1705475441840,-14154.63,0.00022191,2]
[311856379,1705475441849,-500.0,0.00022191,2]
[311856380,1705475441859,-500.0,0.00022191,2]
[311856381,1705475441868,-500.0,0.00022191,2]
[311856382,1705475441878,-2315.44,0.00022191,2]
[311856383,1705475441888,-302.98557895,0.00022191,2]
[311856384,1705475441898,-500.0,0.00022191,2]
[311856385,1705475441908,-3220.33,0.00022191,2]
[311856386,1705475441917,-648.24,0.00022191,2]
[311856387,1705475441996,-6405.2,0.00022191,2]
[311856388,1705475442006,-1449.32,0.00022191,2]
[311856389,1705475442017,-8526.11,0.00022191,2]
[311856390,1705475442031,-500.0,0.00022191,2]
[311856391,1705475442040,-500.0,0.00022191,2]
[311856392,1705475442049,-2706.67,0.00022191,2]
[311856393,1705475442061,-2457.59,0.00022191,2]
[311856394,1705475442071,-503.88032041,0.00022191,2]
[311856395,1705475442081,-500.0,0.00022191,2]
[311856396,1705475442090,-500.0,0.00022191,2]
[311856397,1705475442102,-500.0,0.00022191,2]
[311856398,1705475442114,-344.85757155,0.00022191,2]
[311856399,1705475442123,-5229.37,0.00022191,2]
[311856400,1705475442133,-1716.15,0.00022191,2]
[311856401,1705475442144,-500.0,0.00022191,2]
[311856402,1705475442154,-500.0,0.00022191,2]
[311856403,1705475442165,-679.28,0.00022191,2]
[311856404,1705475442176,-305.08682904,0.00022191,2]
[311856405,1705475442186,-500.0,0.00022191,2]
[311856406,1705475442197,-500.0,0.00022191,2]
[311856407,1705475442207,-500.0,0.00022191,2]
[311856408,1705475442216,-761.44,0.00022191,2]
[311856409,1705475442225,-500.0,0.00022191,2]
[311856410,1705475442234,-500.0,0.00022191,2]
[311856411,1705475442244,-25315.01,0.00022191,2]
[311856412,1705475442253,-14385.46,0.00022191,2]
[311856413,1705475442264,-500.0,0.00022191,2]
[311856414,1705475442274,-1917.7,0.00022191,2]
[311856415,1705475442285,-519.27138741,0.00022191,2]
[311856416,1705475442295,-500.0,0.00022191,2]
[311856417,1705475442305,-2298.94,0.00022191,2]
[311856418,1705475442317,-500.0,0.00022191,2]
[311856419,1705475442327,-500.0,0.00022191,2]
[311856420,1705475442336,-728.01,0.00022191,2]
[311856421,1705475442345,-500.0,0.00022191,2]
[311856422,1705475442355,-500.0,0.00022191,2]
[311856423,1705475442366,-799.16,0.00022191,2]
[311856424,1705475442376,-500.0,0.00022191,2]
[311856425,1705475442386,-1432.6,0.00022191,2]
[311856426,1705475442396,-500.0,0.00022191,2]
[311856427,1705475442406,-500.0,0.00022191,2]
[311856428,1705475442417,-500.0,0.00022191,2]
[311856429,1705475442427,-866.04,0.00022191,2]
[311856430,1705475442436,-6347.06,0.00022191,2]
[311856431,1705475442447,-500.0,0.00022191,2]
[311856432,1705475442457,-500.0,0.00022191,2]
[311856433,1705475442467,-408.30555975,0.00022191,2]
[311856434,1705475442478,-2504.43,0.00022191,2]
[311856435,1705475442489,-1222.41,0.00022191,2]
[311856436,1705475442499,-500.0,0.00022191,2]
[311856437,1705475442509,-1265.88,0.00022191,2]
[311856438,1705475442520,-500.0,0.00022191,2]
[311856439,1705475442530,-1532.62,0.00022191,2]
[311856440,1705475442542,-1582.11,0.00022191,2]
[311856441,1705475442551,-500.0,0.00022191,2]
[311856442,1705475442561,-500.0,0.00022191,2]
[311856443,1705475442572,-500.0,0.00022191,2]
[311856444,1705475442582,-500.0,0.00022191,2]
[311856445,1705475442592,-500.0,0.00022191,2]
[311856446,1705475442601,-500.0,0.00022191,2]
[311856447,1705475442611,-6253.4729554,0.00022221,2]
[311856448,1705475442620,-500.0,0.00022328,2]
[311856449,1705475442631,-585.66,0.00022328,2]
[311856450,1705475442640,-500.0,0.00022328,2]
[311856451,1705475442649,-500.0,0.00022328,2]
[311856452,1705475442658,-583.29568568,0.00022328,2]
[311856453,1705475442667,-500.0,0.00022328,2]
[311856454,1705475442676,-500.0,0.00022328,2]
[311856455,1705475442685,-503.6037089,0.00022328,2]
[311856456,1705475442694,-1303.14,0.00022328,2]
[311856457,1705475442703,-500.0,0.00022328,2]
[311856458,1705475442712,-1056.18,0.00022328,2]
[311856459,1705475442722,-500.0,0.00022328,2]
[311856460,1705475442731,-500.0,0.00022328,2]
[311856461,1705475442741,-205.51801189,0.00022328,2]
[311856462,1705475442750,-739.96,0.00022328,2]
[311856464,1705475442760,-500.0,0.00022328,2]
[311856465,1705475442769,-509.38162307,0.00022328,2]
[311856466,1705475442778,-500.0,0.00022328,2]
[311856467,1705475442787,-637.39,0.00022328,2]
[311856468,1705475442796,-500.0,0.00022328,2]
[311856469,1705475442805,-547.07,0.00022328,2]
[311856470,1705475442815,-500.0,0.00022328,2]
[311856471,1705475442824,-500.0,0.00022328,2]
[311856472,1705475442833,-1308.5,0.00022328,2]
[311856473,1705475442842,-500.0,0.00022328,2]
[311856474,1705475442851,-500.0,0.00022328,2]
[311856475,1705475442860,-500.0,0.00022328,2]
[311856476,1705475442869,-500.0,0.00022328,2]
[311856477,1705475442879,-737.66,0.00022328,2]
[311856478,1705475442888,-500.0,0.00022328,2]
[311856479,1705475442899,-702.46,0.00022328,2]
[311856480,1705475442908,-500.0,0.00022328,2]
[311856481,1705475442918,-502.79,0.00022328,2]
[311856482,1705475442927,-907.25,0.00022328,2]
[311856483,1705475442936,-500.0,0.00022328,2]
[311856484,1705475442945,-500.0,0.00022328,2]
[311856485,1705475442954,-281.3326687,0.00022328,2]
[311856486,1705475442963,-1044.13,0.00022328,2]
[311856487,1705475442973,-167.60150433,0.00022328,2]
[311856488,1705475442982,-500.0,0.00022328,2]
[311856489,1705475442991,-500.0,0.00022328,2]
[311856490,1705475443000,-500.0,0.00022328,2]
[311856491,1705475443010,-515.13,0.00022328,2]
[311856492,1705475443020,-500.0,0.00022328,2]
[311856493,1705475443030,-500.0,0.00022328,2]
[311856494,1705475443040,-723.53,0.00022328,2]
[311856496,1705475443049,-500.0,0.00022328,2]
[311856497,1705475443058,-14154.63,0.00022328,2]
[311856499,1705475443068,-500.0,0.00022328,2]
[311856501,1705475443077,-2315.44,0.00022328,2]
[311856502,1705475443087,-3220.33,0.00022328,2]
[311856504,1705475443096,-648.24,0.00022328,2]
[311856506,1705475443105,-6405.2,0.00022328,2]
[311856507,1705475443115,-1449.32,0.00022328,2]
[311856508,1705475443124,-8526.11,0.00022328,2]
[311856509,1705475443133,-500.0,0.00022328,2]
[311856510,1705475443143,-2706.67,0.00022328,2]
[311856511,1705475443151,-2457.59,0.00022328,2]
[311856512,1705475443161,-500.0,0.00022328,2]
[311856513,1705475443170,-500.0,0.00022328,2]
[311856514,1705475443179,-500.0,0.00022328,2]
[311856515,1705475443188,-5229.37,0.00022328,2]
[311856516,1705475443197,-1716.15,0.00022328,2]
[311856517,1705475443206,-190.52563167,0.00022328,2]
[311856518,1705475443215,-679.28,0.00022328,2]
[311856519,1705475443223,-500.0,0.00022328,2]
[311856520,1705475443232,-500.0,0.00022328,2]
[311856521,1705475443241,-500.0,0.00022328,2]
[311856522,1705475443250,-500.0,0.00022328,2]
[311856523,1705475443259,-761.44,0.00022328,2]
[311856524,1705475443268,-505.42235422,0.00022328,2]
[311856526,1705475443277,-25315.01,0.00022328,2]
[311856527,1705475443286,-14385.46,0.00022328,2]
[311856528,1705475443295,-500.0,0.00022328,2]
[311856529,1705475443304,-1917.7,0.00022328,2]
[311856530,1705475443313,-500.0,0.00022328,2]
[311856531,1705475443322,-2298.94,0.00022328,2]
[311856532,1705475443332,-500.0,0.00022328,2]
[311856533,1705475443341,-500.0,0.00022328,2]
[311856534,1705475443350,-500.0,0.00022328,2]
[311856535,1705475443359,-728.01,0.00022328,2]
[311856536,1705475443369,-500.0,0.00022328,2]
[311856537,1705475443378,-799.16,0.00022328,2]
[311856538,1705475443387,-500.0,0.00022328,2]
[311856539,1705475443396,-1432.6,0.00022328,2]
[311856540,1705475443405,-500.0,0.00022328,2]
[311856541,1705475443414,-500.0,0.00022328,2]
[311856542,1705475443423,-500.0,0.00022328,2]
[311856543,1705475443432,-866.04,0.00022328,2]
[311856544,1705475443442,-6347.06,0.00022328,2]
[311856545,1705475443451,-500.0,0.00022328,2]
[311856546,1705475443460,-500.0,0.00022328,2]
[311856547,1705475443471,-2504.43,0.00022328,2]
[311856548,1705475443481,-1222.41,0.00022328,2]
[311856549,1705475443492,-1265.88,0.00022328,2]
[311856550,1705475443502,-500.0,0.00022328,2]
[311856551,1705475443513,-1532.62,0.00022328,2]
[311856552,1705475443524,-1582.11,0.00022328,2]
[311856553,1705475443535,-615.47939903,0.00022328,2]
[311856554,1705475443544,-500.0,0.00022328,2]
[311856555,1705475443554,-500.0,0.00022328,2]
[311856556,1705475443566,-500.0,0.00022328,2]
[311856557,1705475443576,-500.0,0.00022328,2]
[311856558,1705475443585,-166.666666,0.00022431,2]
[311856559,1705475443594,-500.0,0.00022465,2]
[311856560,1705475443604,-585.66,0.00022465,2]
[311856561,1705475443613,-500.0,0.00022465,2]
[311856562,1705475443622,-500.0,0.00022465,2]
[311856563,1705475443631,-500.0,0.00022465,2]
[311856564,1705475443640,-500.0,0.00022465,2]
[311856565,1705475443714,-1303.14,0.00022465,2]
[311856566,1705475443724,-500.0,0.00022465,2]
[311856567,1705475443733,-1056.18,0.00022465,2]
[311856568,1705475443742,-500.0,0.00022465,2]
[311856569,1705475443752,-500.0,0.00022465,2]
[311856570,1705475443761,-739.96,0.00022465,2]
[311856571,1705475443771,-500.0,0.00022465,2]
[311856572,1705475443781,-500.0,0.00022465,2]
[311856573,1705475443790,-637.39,0.00022465,2]
[311856574,1705475443800,-500.0,0.00022465,2]
[311856575,1705475443809,-547.07,0.00022465,2]
[311856576,1705475443819,-500.0,0.00022465,2]
[311856577,1705475443828,-500.0,0.00022465,2]
[311856578,1705475443837,-1308.5,0.00022465,2]
[311856579,1705475443846,-500.0,0.00022465,2]
[311856580,1705475443856,-500.0,0.00022465,2]
[311856581,1705475443865,-500.0,0.00022465,2]
[311856582,1705475443874,-500.0,0.00022465,2]
[311856583,1705475443883,-737.66,0.00022465,2]
[311856584,1705475443893,-500.0,0.00022465,2]
[311856585,1705475443904,-702.46,0.00022465,2]
[311856586,1705475443913,-500.0,0.00022465,2]
[311856587,1705475443922,-502.79,0.00022465,2]
[311856588,1705475443932,-907.25,0.00022465,2]
[311856589,1705475443941,-500.0,0.00022465,2]
[311856590,1705475443950,-500.0,0.00022465,2]
[311856591,1705475443959,-1044.13,0.00022465,2]
[311856592,1705475443969,-500.0,0.00022465,2]
[311856593,1705475443978,-500.0,0.00022465,2]
[311856594,1705475443987,-500.0,0.00022465,2]
[311856595,1705475443997,-515.13,0.00022465,2]
[311856596,1705475444006,-500.0,0.00022465,2]
[311856597,1705475444015,-500.0,0.00022465,2]
[311856598,1705475444028,-723.53,0.00022465,2]
[311856599,1705475444038,-500.0,0.00022465,2]
[311856600,1705475444047,-14154.63,0.00022465,2]
[311856601,1705475444057,-500.0,0.00022465,2]
[311856602,1705475444067,-2315.44,0.00022465,2]
[311856603,1705475444077,-3220.33,0.00022465,2]
[311856604,1705475444086,-648.24,0.00022465,2]
[311856605,1705475444095,-6405.2,0.00022465,2]
[311856606,1705475444105,-1449.32,0.00022465,2]
[311856607,1705475444114,-8526.11,0.00022465,2]
[311856608,1705475444123,-500.0,0.00022465,2]
[311856609,1705475444133,-2706.67,0.00022465,2]
[311856610,1705475444142,-2457.59,0.00022465,2]
[311856611,1705475444151,-500.0,0.00022465,2]